bitfinex/quotes_BTCUSD_20250618
["timestamp","ask_amount","ask_price","bid_price","bid_amount"]
[1750237130486,0.02855373,105060.0,105050.0,0.29026099]
[1750237132708,0.01903564,105060.0,105050.0,0.29026099]
[1750237133780,0.02855364,105060.0,105050.0,0.29026099]
[1750237134220,0.36855364,105060.0,105050.0,0.29026099]
[1750237135100,0.35903564,105060.0,105050.0,0.29026099]
[1750237136220,0.36855373,105060.0,105050.0,0.29026099]
[1750237136434,0.36855364,105060.0,105050.0,0.29026099]
[1750237136703,0.35903555,105060.0,105050.0,0.29026099]
[1750237136919,0.36855355,105060.0,105050.0,0.29026099]
[1750237139111,0.37807173,105060.0,105050.0,0.29026099]
[1750237139334,0.38759064,105060.0,105050.0,0.29026099]
[1750237139558,0.57795804,105060.0,105050.0,0.28074235]
[1750237139768,0.56844022,105060.0,105050.0,0.27122362]
[1750237140200,0.56844022,105060.0,105050.0,0.24022362]
[1750237140654,0.55892222,105060.0,105050.0,0.24022362]
[1750237141523,0.55892222,105060.0,105050.0,0.24974244]
[1750237143071,0.55892222,105060.0,105050.0,0.24998244]
[1750237146393,0.55892222,105060.0,105050.0,0.24046362]
[1750237146616,0.5620674,105060.0,105050.0,0.20014471]
[1750237146855,0.5620674,105060.0,105050.0,0.00024]
[1750237148169,0.72167922,105060.0,105050.0,0.00024]
[1750237148383,0.78417922,105060.0,105050.0,0.00024]
[1750237148828,0.68910916,105060.0,105050.0,0.00024]
[1750237150253,0.62660916,105060.0,105050.0,0.2001448]
[1750237150417,0.64564562,105060.0,105050.0,0.28148289]
[1750237150635,0.64564507,105060.0,105050.0,0.28148289]
[1750237150843,0.65516325,105060.0,105050.0,0.28148289]
[1750237154162,0.65516325,105060.0,105050.0,0.29100171]
[1750237154972,0.81020325,105060.0,105050.0,0.29100171]
[1750237155237,0.81020325,105060.0,105050.0,0.30052044]
[1750237155443,0.81972152,105060.0,105050.0,0.30052044]
[1750237155660,0.82923989,105060.0,105050.0,0.30052044]
[1750237156294,0.81972207,105060.0,105050.0,0.28148244]
[1750237156782,0.81020398,105060.0,105050.0,0.28148244]
[1750237158821,0.81020398,105060.0,105050.0,0.29100117]
[1750237159053,0.65516398,105060.0,105050.0,0.29100117]
[1750237159290,0.81020398,105060.0,105050.0,0.29100117]
[1750237159730,0.51407609,105060.0,105050.0,0.30051981]
[1750237161832,0.52359436,105060.0,105050.0,0.30051981]
[1750237163051,0.71396176,105060.0,105050.0,0.29100117]
[1750237163523,0.71396176,105060.0,105050.0,0.26244471]
[1750237163765,0.71396176,105060.0,105050.0,0.27196371]
[1750237163991,0.71396176,105060.0,105050.0,0.28148262]
[1750237165024,0.70444385,105060.0,105050.0,0.21918262]
[1750237165789,0.70444385,105060.0,105050.0,0.20966371]
[1750237167782,0.70444385,105060.0,105050.0,0.23966371]
[1750237168885,0.69492567,105060.0,105050.0,0.23966371]
[1750237169991,0.69492567,105060.0,105050.0,0.27106371]
[1750237170209,0.79094356,105060.0,105050.0,0.20014471]
[1750237170418,0.69492567,105060.0,105050.0,0.2096638]
[1750237171316,0.69492567,105060.0,105050.0,0.2394638]
[1750237171764,0.69492567,105060.0,105050.0,0.2489828]
[1750237173782,0.78164916,105060.0,105050.0,0.00024]
[1750237174034,0.87446477,105060.0,105050.0,0.00024]
[1750237174490,0.97061399,105060.0,105050.0,0.00024]
[1750237175628,0.96173316,105060.0,105050.0,0.00024]
[1750237175859,0.87446269,105060.0,105050.0,0.00024]
[1750237177210,0.81326269,105060.0,105050.0,0.00024]
[1750237177842,0.81326269,105060.0,105050.0,0.20966398]
[1750237178050,0.80438394,105060.0,105050.0,0.20966398]
[1750237178282,0.80438394,105060.0,105050.0,0.21918307]
[1750237178527,0.78164916,105060.0,105050.0,0.21918307]
[1750237179235,0.78156916,105060.0,105050.0,0.29992098]
[1750237179701,0.78156916,105060.0,105050.0,0.29040207]
[1750237181609,0.44156916,105060.0,105050.0,0.29040207]
[1750237182304,0.44156916,105060.0,105050.0,0.29992098]
[1750237183802,0.78156916,105060.0,105050.0,0.29992098]
[1750237184041,0.61023803,105060.0,105050.0,0.29992008]
[1750237184248,0.62927431,105060.0,105050.0,0.29992008]
[1750237185663,0.63879195,105060.0,105050.0,0.29992008]
[1750237185884,0.82915935,105060.0,105050.0,0.29992008]
[1750237186111,0.81964171,105060.0,105050.0,0.29040135]
[1750237186389,0.8101238,105060.0,105050.0,0.29040135]
[1750237187111,0.8006058,105060.0,105050.0,0.28088253]
[1750237188695,0.8006058,105060.0,105050.0,0.29040135]
[1750237192485,0.8006058,105060.0,105050.0,0.28088253]
[1750237195671,0.8006058,105060.0,105050.0,0.29040135]
[1750237196616,0.6102384,105060.0,105050.0,0.29992008]
[1750237197293,0.61023803,105060.0,105050.0,0.29991963]
[1750237197506,0.61023749,105060.0,105050.0,0.29991963]
[1750237197732,0.59116176,105060.0,105050.0,0.29991963]
[1750237197998,0.34951773,105060.0,105050.0,0.29991963]
[1750237198419,0.34,105060.0,105050.0,0.29991963]
[1750237198634,0.34951773,105060.0,105050.0,0.29991963]
[1750237199510,0.34,105060.0,105050.0,0.29991963]
[1750237199936,0.34951755,105060.0,105050.0,0.29991963]
[1750237200382,0.34,105060.0,105050.0,0.29991963]
[1750237202221,0.34,105060.0,105050.0,0.33987963]
[1750237202453,0.17854053,105070.0,105060.0,0.2189214]
[1750237202664,0.35410389,105070.0,105060.0,0.2820214]
[1750237202881,0.37313754,105070.0,105060.0,0.2820214]
[1750237203128,0.36362062,105070.0,105060.0,0.2820214]
[1750237204374,0.15797848,105080.0,105070.0,0.27980059]
[1750237204813,0.49797848,105080.0,105070.0,0.31976059]
[1750237205027,0.49797848,105080.0,105070.0,0.47464059]
[1750237205720,0.4984522,105080.0,105070.0,0.47464059]
[1750237206605,0.51829941,105080.0,105070.0,0.47464059]
[1750237209295,0.1584522,105080.0,105070.0,0.47464059]
[1750237209543,0.1584522,105080.0,105070.0,0.5854232]
[1750237209802,0.00047372,105080.0,105070.0,0.5854232]
[1750237210718,0.00047372,105080.0,105070.0,0.5874232]
[1750237211863,0.00047372,105080.0,105070.0,0.5884232]
[1750237216247,0.00047372,105080.0,105070.0,0.80392341]
[1750237216930,0.00047372,105080.0,105070.0,0.5884232]
[1750237221415,0.00047372,105080.0,105070.0,0.80392341]
[1750237222292,0.00047372,105080.0,105070.0,0.95292341]
[1750237222971,0.00047372,105080.0,105070.0,0.95592341]
[1750237223609,0.00047372,105080.0,105070.0,0.95392341]
[1750237223843,0.00047372,105080.0,105070.0,0.95792341]
[1750237232157,0.00047372,105080.0,105070.0,0.7424232]
[1750237232401,0.00047372,105080.0,105070.0,0.95792341]
[1750237234865,0.00047372,105080.0,105070.0,1.76342362]
[1750237235095,0.00047372,105080.0,105070.0,1.8393372]
[1750237235353,0.00047372,105080.0,105070.0,1.8893372]
[1750237236310,0.00047372,105080.0,105070.0,1.8863372]
[1750237236922,0.00047372,105080.0,105070.0,1.67054397]
[1750237237189,0.00047372,105080.0,105070.0,1.66654397]
[1750237237688,0.00047372,105080.0,105070.0,1.66954397]
[1750237238153,0.00047372,105080.0,105070.0,1.66654397]
[1750237240611,0.00047372,105080.0,105070.0,1.59063039]
[1750237241363,0.00047372,105080.0,105070.0,1.3754232]
[1750237241603,0.00047372,105080.0,105070.0,1.39579039]
[1750237241822,0.00047372,105080.0,105070.0,1.3751832]
[1750237242062,0.00047372,105080.0,105070.0,1.59239039]
[1750237242351,0.00047372,105080.0,105070.0,1.39779039]
[1750237242555,0.00047372,105080.0,105070.0,1.59239039]
[1750237245389,0.00047372,105080.0,105070.0,1.57120139]
[1750237246933,0.00047372,105080.0,105070.0,1.42120139]
[1750237247668,0.55147912,105130.0,105120.0,0.19977159]
[1750237247883,0.57807521,105130.0,105120.0,0.35449159]
[1750237248064,0.57807521,105130.0,105120.0,0.19977159]
[1750237248519,0.56634894,105130.0,105120.0,0.19977159]
[1750237248913,0.56649106,105130.0,105120.0,0.20928434]
[1750237249557,0.56649106,105130.0,105120.0,0.218797]
[1750237249988,0.58619595,105130.0,105120.0,0.218797]
[1750237250439,0.58165661,105130.0,105120.0,0.20928434]
[1750237250881,0.60885661,105130.0,105120.0,0.20928434]
[1750237252518,0.60885661,105130.0,105120.0,0.218797]
[1750237253151,0.60885661,105130.0,105120.0,0.19977159]
[1750237253380,0.60885661,105130.0,105120.0,0.20928434]
[1750237253605,0.60885661,105130.0,105110.0,0.19979069]
[1750237253606,0.2555093,105120.0,105110.0,0.19979069]
[1750237253823,0.26437466,105120.0,105110.0,0.23967069]
[1750237254054,0.28211475,105120.0,105110.0,0.24918426]
[1750237254270,0.24534979,105120.0,105110.0,0.23967069]
[1750237254507,0.26308993,105120.0,105110.0,0.23967069]
[1750237254727,0.26308993,105120.0,105110.0,0.24918435]
[1750237254950,0.24534979,105120.0,105110.0,0.24918435]
[1750237255389,0.26308969,105120.0,105110.0,0.25118435]
[1750237255831,0.26308969,105120.0,105110.0,0.26069792]
[1750237256012,0.26308969,105120.0,105110.0,0.2702114]
[1750237256459,0.24534979,105120.0,105110.0,0.2702114]
[1750237256691,0.26309235,105120.0,105110.0,0.2702114]
[1750237256912,0.24534979,105120.0,105110.0,0.2702114]
[1750237257122,0.24534979,105120.0,105110.0,0.26069792]
[1750237257762,0.24534979,105120.0,105110.0,0.2702114]
[1750237257972,0.24534979,105120.0,105110.0,0.21130435]
[1750237258569,0.24534979,105120.0,105110.0,0.22081792]
[1750237259130,0.24534979,105120.0,105110.0,0.23984469]
[1750237259131,0.23648443,105120.0,105110.0,0.23984469]
[1750237259410,0.04622568,105120.0,105110.0,0.23984405]
[1750237259639,0.23648443,105120.0,105110.0,0.22081756]
[1750237260255,0.24535974,105120.0,105110.0,0.22081756]
[1750237260575,0.23648443,105120.0,105110.0,0.22081747]
[1750237261069,0.23648443,105120.0,105110.0,0.23033076]
[1750237261707,0.23648443,105120.0,105110.0,0.22081747]
[1750237261892,0.23648443,105120.0,105110.0,0.21130408]
[1750237262149,0.23648443,105120.0,105110.0,0.19227685]
[1750237262366,0.68984704,105120.0,105110.0,0.002]
[1750237262595,0.71256888,105120.0,105110.0,0.002]
[1750237262817,0.7125699,105120.0,105110.0,0.002]
[1750237263919,0.5397906,105110.0,105100.0,0.2378673]
[1750237264159,0.59212522,105110.0,105100.0,0.22835301]
[1750237264418,0.5654906,105110.0,105100.0,0.22835301]
[1750237265245,0.5654906,105110.0,105100.0,0.21883863]
[1750237265505,0.57500417,105110.0,105100.0,0.23035292]
[1750237265721,0.58451801,105110.0,105100.0,0.23986712]
[1750237265956,0.58451801,105110.0,105100.0,0.22083863]
[1750237267269,0.58451801,105110.0,105100.0,0.23035292]
[1750237267481,0.58451801,105110.0,105100.0,0.22083863]
[1750237267883,0.57500444,105110.0,105100.0,0.22083863]
[1750237268525,0.56549069,105110.0,105100.0,0.21132416]
[1750237268939,0.72017069,105110.0,105100.0,0.21132416]
[1750237269405,0.72013068,105110.0,105100.0,0.21132416]
[1750237269626,0.72013068,105110.0,105100.0,0.22083872]
[1750237269837,0.72013068,105110.0,105100.0,0.23035319]
[1750237271608,0.72013068,105110.0,105100.0,0.22083872]
[1750237272586,0.72013068,105110.0,105100.0,0.21132416]
[1750237273714,0.70783068,105110.0,105100.0,0.22083872]
[1750237273928,0.69443068,105110.0,105100.0,0.23035319]
[1750237276499,0.67443068,105110.0,105100.0,0.23986712]
[1750237277676,0.67443068,105110.0,105100.0,0.23035283]
[1750237279211,0.67443068,105110.0,105100.0,0.22083845]
[1750237281073,0.67443068,105110.0,105100.0,0.21132398]
[1750237281790,0.67443068,105110.0,105100.0,0.22083845]
[1750237282661,0.67443068,105110.0,105100.0,0.24973845]
[1750237283763,0.67443068,105110.0,105100.0,0.0309]
[1750237283976,0.68330975,105110.0,105100.0,0.0309]
[1750237287419,0.68330975,105110.0,105100.0,0.07061474]
[1750237287638,0.68330975,105110.0,105100.0,0.27042434]
[1750237288285,0.67379591,105110.0,105100.0,0.26090969]
[1750237288909,0.67379591,105110.0,105100.0,0.27042434]
[1750237290265,0.69156738,105110.0,105100.0,0.27042434]
[1750237290484,0.69156738,105110.0,105100.0,0.26090969]
[1750237290910,0.69156738,105110.0,105100.0,0.27042434]
[1750237291352,0.6915679,105110.0,105100.0,0.27042434]
[1750237291535,0.74388553,105110.0,105100.0,0.2799389]
[1750237291779,0.73437251,105110.0,105100.0,0.28945337]
[1750237291992,0.74388635,105110.0,105100.0,0.29896775]
[1750237292198,0.74388635,105110.0,105100.0,0.28945337]
[1750237293131,0.73500728,105110.0,105100.0,0.28945337]
[1750237293344,0.74389993,105110.0,105100.0,0.28945337]
[1750237293759,0.74389993,105110.0,105100.0,0.27042434]
[1750237294354,0.74389993,105110.0,105100.0,0.2799389]
[1750237296011,0.73502232,105110.0,105100.0,0.2799389]
[1750237296218,0.74391583,105110.0,105100.0,0.2799389]
[1750237297597,0.58923583,105110.0,105100.0,0.2799389]
[1750237297610,0.74391583,105110.0,105100.0,0.28945337]
[1750237298964,0.74391511,105110.0,105100.0,0.28945337]
[1750237302045,0.74391511,105110.0,105100.0,0.29896775]
[1750237302577,0.75342868,105110.0,105100.0,0.29896721]
[1750237302785,0.73066408,105110.0,105100.0,0.28945301]
[1750237303415,0.73066408,105110.0,105100.0,0.27042416]
[1750237303848,0.73066408,105110.0,105100.0,0.27993863]
[1750237304213,0.71287753,105110.0,105100.0,0.27993863]
[1750237304650,0.71287753,105110.0,105100.0,0.28945292]
[1750237305097,0.71287674,105110.0,105100.0,0.28945292]
[1750237306868,0.70398426,105110.0,105100.0,0.28945292]
[1750237307067,0.71287595,105110.0,105100.0,0.28945292]
[1750237309366,0.36791855,105110.0,105100.0,0.29896658]
[1750237309599,0.35902631,105110.0,105100.0,0.29896658]
[1750237309806,0.34951302,105110.0,105100.0,0.29896658]
[1750237310022,0.34951311,105110.0,105100.0,0.45360658]
[1750237310262,0.34,105110.0,105100.0,0.45360658]
[1750237311110,0.34951311,105110.0,105100.0,0.45360658]
[1750237311326,0.34,105110.0,105100.0,0.45360658]
[1750237311566,0.34951311,105110.0,105100.0,0.45360658]
[1750237312942,0.37805345,105110.0,105100.0,0.45360658]
[1750237315463,0.3875672,105110.0,105100.0,0.45360658]
[1750237315679,0.3875672,105110.0,105100.0,0.25139495]
[1750237315680,0.55881765,105110.0,105100.0,0.25139495]
[1750237315896,0.54930426,105110.0,105100.0,0.0611]
[1750237316111,0.54867771,105110.0,105100.0,0.0611]
[1750237316552,0.5397906,105110.0,105100.0,0.0611]
[1750237316782,0.5486778,105110.0,105100.0,0.0611]
[1750237317231,0.5486778,105110.0,105100.0,0.07061474]
[1750237317449,0.5486778,105110.0,105100.0,0.0611]
[1750237320178,0.54867864,105110.0,105100.0,0.0611]
[1750237320384,0.54867864,105110.0,105100.0,0.07061474]
[1750237321609,0.72109501,105110.0,105100.0,0.07061474]
[1750237323112,0.72109501,105110.0,105100.0,0.0611]
[1750237323801,0.70331864,105110.0,105100.0,0.0611]
[1750237324464,0.70331864,105110.0,105100.0,0.07061474]
[1750237324706,0.70331864,105110.0,105100.0,0.27993881]
[1750237325227,0.52255527,105110.0,105100.0,0.29896748]
[1750237325481,0.53206838,105110.0,105100.0,0.29896685]
[1750237325708,0.37805409,105110.0,105100.0,0.29896685]
[1750237325935,0.73248478,105110.0,105100.0,0.29896685]
[1750237326157,0.73248478,105110.0,105100.0,0.28945274]
[1750237326369,0.72297158,105110.0,105100.0,0.28945274]
[1750237327027,0.72297158,105110.0,105100.0,0.29896694]
[1750237327688,0.34951302,105110.0,105100.0,0.29896694]
[1750237327901,0.34,105110.0,105100.0,0.2989664]
[1750237328562,0.51366496,105120.0,105110.0,0.27941728]
[1750237328777,0.5225556,105120.0,105110.0,0.27941728]
[1750237329462,0.53194808,105120.0,105110.0,0.27941728]
[1750237329900,0.37734808,105120.0,105110.0,0.27941728]
[1750237330115,0.37734799,105120.0,105110.0,0.27941728]
[1750237330565,0.3589446,105120.0,105110.0,0.27941728]
[1750237331042,0.36845717,105120.0,105110.0,0.27941728]
[1750237331245,0.34,105120.0,105110.0,0.31925728]
[1750237331514,0.3495123,105120.0,105110.0,0.31925728]
[1750237331778,0.34951212,105120.0,105110.0,0.31925728]
[1750237332583,0.34,105120.0,105110.0,0.31925728]
[1750237333694,0.3495123,105120.0,105110.0,0.31925728]
[1750237333935,0.34951221,105120.0,105110.0,0.31925728]
[1750237334652,0.3590246,105120.0,105110.0,0.31925728]
[1750237334902,0.36853708,105120.0,105110.0,0.31925728]
[1750237335137,0.38756249,105120.0,105110.0,0.31925728]
[1750237335628,0.37804974,105120.0,105110.0,0.31925728]
[1750237336113,0.38756249,105120.0,105110.0,0.31925728]
[1750237340243,0.37804974,105120.0,105110.0,0.31925728]
[1750237341132,0.38756249,105120.0,105110.0,0.31925728]
[1750237343756,0.37804965,105120.0,105110.0,0.31925728]
[1750237344223,0.34951221,105120.0,105110.0,0.31925728]
[1750237345528,0.34951212,105120.0,105110.0,0.31925728]
[1750237345886,0.35902442,105120.0,105110.0,0.31925728]
[1750237346681,0.34951212,105120.0,105110.0,0.31925728]
[1750237347068,0.34,105120.0,105110.0,0.31925728]
[1750237348776,0.34,105120.0,105110.0,0.33379813]
[1750237349612,0.35902469,105120.0,105110.0,0.33379813]
[1750237349832,0.36853735,105120.0,105110.0,0.33379813]
[1750237350068,0.3590246,105120.0,105110.0,0.31925728]
[1750237350516,0.34951212,105120.0,105110.0,0.31925728]
[1750237350780,0.34,105120.0,105110.0,0.31925728]
[1750237350992,0.34951212,105120.0,105110.0,0.31925728]
[1750237351610,0.34,105120.0,105110.0,0.31925728]
[1750237352286,0.34951212,105120.0,105110.0,0.31925728]
[1750237352713,0.34,105120.0,105110.0,0.31925728]
[1750237354917,0.02935822,105130.0,105120.0,0.27659646]
[1750237355134,0.36935822,105130.0,105120.0,0.27659646]
[1750237355770,0.02935822,105130.0,105120.0,0.27659646]
[1750237356244,0.03886961,105130.0,105120.0,0.27659646]
[1750237356505,0.04838119,105130.0,105120.0,0.27659646]
[1750237356739,0.03886961,105130.0,105120.0,0.27659646]
[1750237357590,0.04838119,105130.0,105120.0,0.27659646]
[1750237357835,0.03886961,105130.0,105120.0,0.27659646]
[1750237358174,0.02935822,105130.0,105120.0,0.27659646]
[1750237358615,0.03886952,105130.0,105120.0,0.27659646]
[1750237359047,0.048381,105130.0,105120.0,0.27659646]
[1750237359249,0.03886952,105130.0,105120.0,0.27659646]
[1750237359657,0.03886952,105130.0,105120.0,0.43139646]
[1750237360013,0.0483811,105130.0,105120.0,0.43139646]
[1750237360915,0.048381,105130.0,105120.0,0.43139646]
[1750237362353,0.02867602,105130.0,105120.0,0.43139646]
[1750237363213,0.00014212,105130.0,105120.0,0.43139646]
[1750237363858,0.00014212,105130.0,105120.0,0.44593731]
[1750237369804,0.01902071,105140.0,105130.0,0.27857565]
[1750237370260,0.02853138,105140.0,105130.0,0.27857565]
[1750237370480,0.02853129,105140.0,105130.0,0.27857565]
[1750237370701,0.01902071,105140.0,105130.0,0.27857565]
[1750237370920,0.0285312,105140.0,105130.0,0.27857565]
[1750237371360,0.01902071,105140.0,105130.0,0.27857565]
[1750237372848,0.05782991,105150.0,105140.0,0.27795484]
[1750237373080,0.24029134,105150.0,105140.0,0.27795484]
[1750237374202,0.24029061,105150.0,105140.0,0.27795484]
[1750237374414,0.08573061,105150.0,105140.0,0.27795484]
[1750237376001,0.04769172,105150.0,105140.0,0.27795484]
[1750237376212,0.03881019,105150.0,105140.0,0.27795484]
[1750237377073,0.04831968,105150.0,105140.0,0.27795484]
[1750237377288,0.05782936,105150.0,105140.0,0.27795484]
[1750237378127,0.06733913,105150.0,105140.0,0.27795484]
[1750237379614,0.07684917,105150.0,105140.0,0.27795484]
[1750237379833,0.26705427,105150.0,105140.0,0.26844453]
[1750237380050,0.25754459,105150.0,105140.0,0.19973368]
[1750237380279,0.24803482,105150.0,105140.0,0.19973368]
[1750237380511,0.24803482,105150.0,105140.0,0.21875547]
[1750237380736,0.23852478,105150.0,105140.0,0.19973368]
[1750237380913,0.23852478,105150.0,105140.0,0.20924471]
[1750237381125,0.24739948,105150.0,105140.0,0.20924471]
[1750237381389,0.24739948,105150.0,105140.0,0.23794471]
[1750237381635,0.24739948,105150.0,105140.0,0.24745565]
[1750237381854,0.24739948,105150.0,105140.0,0.2569665]
[1750237382285,0.24739948,105150.0,105140.0,0.26647717]
[1750237382497,0.26641956,105150.0,105140.0,0.29707717]
[1750237382927,0.26642008,105150.0,105140.0,0.29707717]
[1750237383554,0.07621562,105150.0,105140.0,0.29707663]
[1750237383761,0.06670486,105150.0,105140.0,0.29707663]
[1750237383972,0.07621499,105150.0,105140.0,0.29707663]
[1750237384179,0.07684999,105150.0,105140.0,0.29707609]
[1750237384400,0.08572762,105150.0,105140.0,0.29707609]
[1750237384618,0.27593208,105150.0,105140.0,0.27805502]
[1750237384835,0.60642249,105150.0,105140.0,0.26854435]
[1750237385060,0.40670709,105150.0,105140.0,0.2875656]
[1750237385291,0.39782946,105150.0,105140.0,0.2875656]
[1750237385508,0.40733941,105150.0,105140.0,0.2875656]
[1750237385750,0.05782946,105150.0,105140.0,0.2875656]
[1750237386418,0.00955694,105150.0,105140.0,0.2875656]
[1750237387151,0.00955684,105150.0,105140.0,0.2875656]
[1750237387402,4.735e-05,105150.0,105140.0,0.2875656]
[1750237387639,0.00955675,105150.0,105140.0,0.2875656]
[1750237388382,4.735e-05,105150.0,105140.0,0.2875656]
[1750237389718,4.735e-05,105150.0,105140.0,0.50270709]
[1750237389934,4.735e-05,105150.0,105140.0,0.2875656]
[1750237390417,4.735e-05,105150.0,105140.0,0.6134897]
[1750237391103,4.735e-05,105150.0,105140.0,0.39834821]
[1750237391315,4.735e-05,105150.0,105140.0,0.6134897]
[1750237393996,4.735e-05,105150.0,105140.0,1.0184897]
[1750237394177,4.735e-05,105150.0,105140.0,1.3916298]
[1750237395574,4.735e-05,105150.0,105140.0,1.3896298]
[1750237395822,4.735e-05,105150.0,105140.0,1.3866298]
[1750237396020,4.735e-05,105150.0,105140.0,1.3896298]
[1750237396231,4.735e-05,105150.0,105140.0,1.3956298]
[1750237397376,5e-05,105160.0,105150.0,0.49391638]
[1750237397587,5e-05,105160.0,105150.0,0.56949665]
[1750237398208,5e-05,105160.0,105150.0,0.78463814]
[1750237398640,5e-05,105160.0,105150.0,0.78663814]
[1750237398854,5e-05,105160.0,105150.0,0.57149665]
[1750237399675,5e-05,105160.0,105150.0,0.78963814]
[1750237402722,5e-05,105160.0,105150.0,1.08073814]
[1750237404508,5e-05,105160.0,105150.0,0.86559665]
[1750237404727,5e-05,105160.0,105150.0,1.08073814]
[1750237414357,5e-05,105160.0,105150.0,0.86559665]
[1750237414554,5e-05,105160.0,105150.0,1.08073814]
[1750237415138,5e-05,105160.0,105150.0,0.86559665]
[1750237415366,5e-05,105160.0,105150.0,1.08073814]
[1750237415731,5e-05,105160.0,105150.0,0.86559665]
[1750237416134,5e-05,105160.0,105150.0,0.93927665]
[1750237416338,5e-05,105160.0,105150.0,1.09391665]
[1750237417968,5e-05,105160.0,105150.0,1.09403665]
[1750237418541,5e-05,105160.0,105150.0,0.64825665]
[1750237418746,5e-05,105160.0,105150.0,0.80293665]
[1750237418938,5e-05,105160.0,105150.0,0.60837665]
[1750237419144,5e-05,105160.0,105150.0,0.80289665]
[1750237419310,5e-05,105160.0,105150.0,0.64825665]
[1750237419509,5e-05,105160.0,105150.0,0.60837665]
[1750237419713,5e-05,105160.0,105150.0,0.80289665]
[1750237425234,5e-05,105160.0,105150.0,0.57453665]
[1750237437034,0.04691045,105180.0,105170.0,0.21869244]
[1750237437266,0.0469108,105180.0,105170.0,0.21869244]
[1750237437934,0.04691069,105180.0,105170.0,0.21869244]
[1750237438346,0.05641811,105180.0,105170.0,0.21869244]
[1750237439981,0.04691069,105180.0,105170.0,0.21869244]
[1750237440423,0.06467722,105180.0,105170.0,0.21869244]
[1750237440883,0.05517007,105180.0,105170.0,0.26789244]
[1750237441112,0.03740345,105180.0,105170.0,0.26789244]
[1750237441338,0.02852088,105180.0,105170.0,0.26789244]
[1750237441563,0.01901374,105180.0,105170.0,0.26789244]
[1750237441786,0.02852088,105180.0,105170.0,0.26789244]
[1750237442000,0.01901374,105180.0,105170.0,0.26789244]
[1750237442214,0.00950678,105180.0,105170.0,0.26789244]
[1750237442430,0.60836349,105190.0,105180.0,0.21867173]
[1750237442688,0.08821083,105190.0,105180.0,0.2281786]
[1750237442910,0.01948581,105190.0,105180.0,0.2756786]
[1750237443122,0.01948581,105190.0,105180.0,0.3155586]
[1750237443554,0.0004736,105190.0,105180.0,0.3155586]
[1750237443762,0.00997948,105190.0,105180.0,0.3155586]
[1750237444448,0.00997939,105190.0,105180.0,0.3155586]
[1750237444872,0.01948536,105190.0,105180.0,0.3155586]
[1750237445324,0.02899151,105190.0,105180.0,0.3155586]
[1750237446410,0.02899151,105190.0,105180.0,0.2756786]
[1750237446619,0.04800507,105190.0,105180.0,0.4466986]
[1750237446832,0.24702283,105190.0,105180.0,0.43719182]
[1750237447042,0.23751686,105190.0,105180.0,0.41299182]
[1750237447897,0.23751686,105190.0,105180.0,0.21867182]
[1750237448545,0.23751686,105190.0,105180.0,0.22817878]
[1750237448970,0.23751332,105190.0,105180.0,0.22817878]
[1750237449600,0.03787458,105190.0,105180.0,0.22817878]
[1750237449816,0.0289925,105190.0,105180.0,0.23768565]
[1750237450495,0.0289925,105190.0,105180.0,0.28598565]
[1750237451352,0.0384991,105190.0,105180.0,0.28598565]
[1750237451974,0.04738118,105190.0,105180.0,0.28598565]
[1750237452250,0.23751332,105190.0,105180.0,0.27647878]
[1750237452886,0.04738118,105190.0,105180.0,0.28598565]
[1750237454571,0.0378723,105190.0,105180.0,0.28598565]
[1750237454782,0.01885928,105190.0,105180.0,0.28598565]
[1750237454988,0.00997948,105190.0,105180.0,0.28598565]
[1750237457432,0.01948554,105190.0,105180.0,0.28598565]
[1750237458064,0.02899187,105190.0,105180.0,0.28598565]
[1750237460418,0.0004736,105190.0,105180.0,0.3005265]
[1750237460642,0.0004736,105190.0,105180.0,0.61190975]
[1750237460871,0.0004736,105190.0,105180.0,0.39676826]
[1750237461818,0.0004736,105190.0,105180.0,0.55152826]
[1750237462058,0.00997939,105190.0,105180.0,0.55152826]
[1750237462267,0.0004736,105190.0,105180.0,0.55152826]
[1750237464091,0.0004736,105190.0,105180.0,0.55252826]
[1750237467939,0.0004736,105190.0,105180.0,0.76766975]
[1750237470189,0.0004736,105190.0,105180.0,0.76666975]
[1750237470485,0.0004736,105190.0,105180.0,0.77166975]
[1750237470897,0.0004736,105190.0,105180.0,0.55652826]
[1750237471524,0.0004736,105190.0,105180.0,0.77166975]
[1750237472959,0.0004736,105190.0,105180.0,1.02166975]
[1750237473609,0.0004736,105190.0,105180.0,1.31276975]
[1750237474496,0.0004736,105190.0,105180.0,1.54108975]
[1750237474994,0.0004736,105190.0,105180.0,1.75623124]
[1750237475254,0.0004736,105190.0,105180.0,2.14623124]
[1750237475503,0.0004736,105190.0,105180.0,2.22226249]
[1750237476255,0.0004736,105190.0,105180.0,2.23231249]
[1750237476746,0.0004736,105190.0,105180.0,2.22931249]
[1750237476987,0.0004736,105190.0,105180.0,2.23331249]
[1750237477229,0.0004736,105190.0,105180.0,1.80602951]
[1750237477474,0.0004736,105190.0,105180.0,2.23631249]
[1750237480613,0.0004736,105190.0,105180.0,1.80602951]
[1750237480850,0.0004736,105190.0,105180.0,2.23631249]
[1750237483117,0.0004736,105190.0,105180.0,2.23331249]
[1750237484160,0.0004736,105190.0,105180.0,2.22731249]
[1750237484403,0.0004736,105190.0,105180.0,2.37731249]
[1750237486388,0.0004736,105190.0,105180.0,2.162171]
[1750237487880,0.0004736,105190.0,105180.0,1.94702951]
[1750237488085,0.0004736,105190.0,105180.0,2.37731249]
[1750237491845,0.0004736,105190.0,105180.0,2.202971]
[1750237492248,0.0004736,105190.0,105180.0,2.052931]
[1750237497108,0.0004736,105190.0,105180.0,1.857411]
[1750237497322,0.0004736,105190.0,105180.0,1.95082124]
[1750237497525,0.0004736,105190.0,105180.0,1.90082124]
[1750237497734,0.0004736,105190.0,105180.0,1.95082124]
[1750237497942,0.0004736,105190.0,105180.0,2.0458603]
[1750237498159,0.0004736,105190.0,105180.0,2.1958603]
[1750237499198,0.00888013,105230.0,105180.0,2.1958603]
[1750237499199,0.00888471,105230.0,105220.0,0.20908472]
[1750237499409,0.00888471,105230.0,105220.0,0.40444472]
[1750237499615,0.00902681,105230.0,105220.0,0.40444472]
[1750237501100,0.00902681,105230.0,105220.0,0.20908472]
[1750237501308,0.00902681,105230.0,105220.0,0.40444472]
[1750237501723,0.0001421,105230.0,105220.0,0.40444472]
[1750237501950,0.00902961,105230.0,105220.0,0.40444472]
[1750237502865,0.01853179,105230.0,105220.0,0.24940472]
[1750237503133,0.02803406,105230.0,105220.0,0.20908526]
[1750237503355,0.05531153,105230.0,105220.0,0.41390852]
[1750237503609,0.06481407,105230.0,105220.0,0.41390852]
[1750237503805,0.07431679,105230.0,105220.0,0.41390852]
[1750237504016,0.06481407,105230.0,105220.0,0.41390852]
[1750237504450,0.07431688,105230.0,105220.0,0.41390852]
[1750237504644,0.07432538,105230.0,105220.0,0.41390852]
[1750237504901,0.06482266,105230.0,105220.0,0.41390852]
[1750237505128,0.07432547,105230.0,105220.0,0.41390852]
[1750237505355,0.07432538,105230.0,105220.0,0.41390852]
[1750237506027,0.36681322,105230.0,105210.0,0.41356881]
[1750237506239,0.55687308,105230.0,105220.0,0.20908562]
[1750237507339,0.55687308,105230.0,105220.0,0.21858933]